[Event "Titled Tuesday Blitz November 07 Early 2023"]
[White "Xqswdc"]
[Black "Kopczynski, Michal"]
[BlackFideId "1124200"]
[WhiteElo "2255"]
[BlackElo "2485"]
[Result "0-1"]
[Round "2"]
[TimeControl "180+1"]
[Date "2023.11.07"]
[WhiteClock "0:00:00"]
[BlackClock "0:00:49"]
[Board "207"]

1. e4 {[%clk 0:03:00]}  b6 {[%clk 0:02:59]} 2. d4 {[%clk 0:02:57]}  Bb7 {[%clk 0:03:00]} 3. Nc3 {[%clk 0:02:58]}  e6 {[%clk 0:03:00]} 4. f4 {[%clk 0:02:58]}  Nf6 {[%clk 0:03:00]} 5. Bd3 {[%clk 0:02:58]}  Bb4 {[%clk 0:02:59]} 6. Qe2 {[%clk 0:02:56]}  d5 {[%clk 0:02:59]} 7. e5 {[%clk 0:02:53]}  Ne4 {[%clk 0:02:59]} 8. Bxe4 {[%clk 0:02:22]}  dxe4 {[%clk 0:03:00]} 9. Be3 {[%clk 0:02:23]}  Nc6 {[%clk 0:02:54]} 10. Rd1 {[%clk 0:02:21]}  O-O {[%clk 0:02:50]} 11. Nh3 {[%clk 0:02:21]}  f5 {[%clk 0:02:47]} 12. exf6 {[%clk 0:02:18]}  gxf6 {[%clk 0:02:48]} 13. O-O {[%clk 0:02:18]}  Bxc3 {[%clk 0:02:47]} 14. bxc3 {[%clk 0:02:17]}  Qe8 {[%clk 0:02:44]} 15. f5 {[%clk 0:02:08]}  exf5 {[%clk 0:02:41]} 16. Rxf5 {[%clk 0:02:07]}  Qg6 {[%clk 0:02:38]} 17. Rdf1 {[%clk 0:02:07]}  Ne7 {[%clk 0:02:33]} 18. Rh5 {[%clk 0:02:06]}  Bc8 {[%clk 0:02:26]} 19. Rh6 {[%clk 0:02:06]}  Qg7 {[%clk 0:02:20]} 20. Qh5 {[%clk 0:01:48]}  Bg4 {[%clk 0:02:15]} 21. Qb5 {[%clk 0:01:37]}  c6 {[%clk 0:01:51]} 22. Qc4+ {[%clk 0:01:30]}  Kh8 {[%clk 0:01:46]} 23. Nf2 {[%clk 0:00:51]}  Bf3 {[%clk 0:01:32]} 24. g3 {[%clk 0:00:20]}  Nf5 {[%clk 0:01:32]} 25. Bf4 {[%clk 0:00:15]}  Nxh6 {[%clk 0:01:32]} 26. Qe6 {[%clk 0:00:16]}  Rae8 {[%clk 0:01:25]} 27. Qh3 {[%clk 0:00:16]}  Ng4 {[%clk 0:01:25]} 28. Nxg4 {[%clk 0:00:12]}  Qxg4 {[%clk 0:01:26]} 29. Qh6 {[%clk 0:00:12]}  Qg6 {[%clk 0:01:20]} 30. Qh4 {[%clk 0:00:12]}  Be2 {[%clk 0:01:16]} 31. Re1 {[%clk 0:00:12]}  Qh5 {[%clk 0:01:07]} 32. Qxh5 {[%clk 0:00:10]}  Bxh5 {[%clk 0:01:07]} 33. Re3 {[%clk 0:00:10]}  Bf3 {[%clk 0:01:06]} 34. h3 {[%clk 0:00:10]}  Rf7 {[%clk 0:01:04]} 35. Kf2 {[%clk 0:00:10]}  c5 {[%clk 0:01:04]} 36. g4 {[%clk 0:00:11]}  cxd4 {[%clk 0:01:05]} 37. cxd4 {[%clk 0:00:11]}  Rc8 {[%clk 0:01:05]} 38. c3 {[%clk 0:00:12]}  b5 {[%clk 0:01:03]} 39. Bd6 {[%clk 0:00:11]}  a5 {[%clk 0:01:02]} 40. a3 {[%clk 0:00:10]}  Rd7 {[%clk 0:01:02]} 41. Bf4 {[%clk 0:00:08]}  b4 {[%clk 0:01:02]} 42. axb4 {[%clk 0:00:08]}  a4 {[%clk 0:01:01]} 43. b5 {[%clk 0:00:07]}  a3 {[%clk 0:01:01]} 44. b6 {[%clk 0:00:05]}  a2 {[%clk 0:01:01]} 45. Re1 {[%clk 0:00:05]}  Rxc3 {[%clk 0:01:00]} 46. Bc7 {[%clk 0:00:05]}  Rdxc7 {[%clk 0:00:58]} 47. bxc7 {[%clk 0:00:05]}  Rxc7 {[%clk 0:00:59]} 48. Ra1 {[%clk 0:00:05]}  Rc2+ {[%clk 0:00:57]} 49. Ke3 {[%clk 0:00:05]}  Kg7 {[%clk 0:00:54]} 50. d5 {[%clk 0:00:05]}  Kf7 {[%clk 0:00:54]} 51. Kf4 {[%clk 0:00:05]}  Ke7 {[%clk 0:00:54]} 52. Kf5 {[%clk 0:00:05]}  Bg2 {[%clk 0:00:54]} 53. d6+ {[%clk 0:00:03]}  Kxd6 {[%clk 0:00:53]} 54. Kxf6 {[%clk 0:00:04]}  e3 {[%clk 0:00:54]} 55. Kf5 {[%clk 0:00:03]}  Bxh3 {[%clk 0:00:54]} 56. Kf4 {[%clk 0:00:03]}  e2 {[%clk 0:00:54]} 57. Kf3 {[%clk 0:00:03]}  Bf1 {[%clk 0:00:52]} 58. g5 {[%clk 0:00:03]}  Ke5 {[%clk 0:00:51]} 59. Kf2 {[%clk 0:00:03]}  Kf5 {[%clk 0:00:50]} 60. Ke1 {[%clk 0:00:01]}  Kxg5 {[%clk 0:00:49]} 61. Kf2 {[%clk 0:00:00]}  h5 {[%clk 0:00:49]} 0-1


[Site "https://www.chess.com"]

[Event "Titled Tuesday Blitz November 07 Early 2023"]
[White "parintele_chess"]
[Black "subham777"]
[WhiteElo "2239"]
[BlackElo "2480"]
[Result "0-1"]
[Round "2"]
[TimeControl "180+1"]
[Date "2023.11.07"]
[WhiteClock "0:00:00"]
[BlackClock "0:00:07"]
[Board "209"]

1. d4 {[%clk 0:03:00]}  d5 {[%clk 0:02:58]} 2. c4 {[%clk 0:03:00]}  e6 {[%clk 0:02:58]} 3. Nc3 {[%clk 0:02:52]}  Nf6 {[%clk 0:02:57]} 4. cxd5 {[%clk 0:02:47]}  exd5 {[%clk 0:02:58]} 5. Bg5 {[%clk 0:02:43]}  c6 {[%clk 0:02:59]} 6. e3 {[%clk 0:02:43]}  Bd6 {[%clk 0:02:58]} 7. Bd3 {[%clk 0:02:42]}  O-O {[%clk 0:02:59]} 8. Qc2 {[%clk 0:02:41]}  h6 {[%clk 0:02:59]} 9. Bh4 {[%clk 0:02:41]}  a5 {[%clk 0:02:50]} 10. Nge2 {[%clk 0:02:16]}  Na6 {[%clk 0:02:48]} 11. a3 {[%clk 0:02:15]}  Re8 {[%clk 0:02:48]} 12. O-O {[%clk 0:02:15]}  Bxh2+ {[%clk 0:02:48]} 13. Kxh2 {[%clk 0:02:14]}  Ng4+ {[%clk 0:02:48]} 14. Kg3 {[%clk 0:02:15]}  g5 {[%clk 0:02:49]} 15. Bf5 {[%clk 0:01:49]}  gxh4+ {[%clk 0:02:46]} 16. Kh3 {[%clk 0:01:37]}  Qg5 {[%clk 0:02:39]} 17. Bxc8 {[%clk 0:01:31]}  Raxc8 {[%clk 0:02:36]} 18. g3 {[%clk 0:01:08]}  hxg3 {[%clk 0:02:20]} 19. Nxg3 {[%clk 0:01:09]}  Nc7 {[%clk 0:01:59]} 20. Qf5 {[%clk 0:01:08]}  Nf6 {[%clk 0:01:49]} 21. Qxg5+ {[%clk 0:01:06]}  hxg5 {[%clk 0:01:50]} 22. Nf5 {[%clk 0:01:06]}  Re6 {[%clk 0:01:41]} 23. Rh1 {[%clk 0:00:50]}  Nce8 {[%clk 0:01:20]} 24. Rag1 {[%clk 0:00:44]}  g4+ {[%clk 0:01:14]} 25. Kg2 {[%clk 0:00:42]}  Ng7 {[%clk 0:01:12]} 26. Nh6+ {[%clk 0:00:39]}  Kf8 {[%clk 0:01:11]} 27. Nxg4 {[%clk 0:00:27]}  Ke7 {[%clk 0:01:07]} 28. Kf3 {[%clk 0:00:23]}  Nxg4 {[%clk 0:00:56]} 29. Rxg4 {[%clk 0:00:24]}  Nf5 {[%clk 0:00:56]} 30. Rh7 {[%clk 0:00:21]}  Nd6 {[%clk 0:00:50]} 31. Rgg7 {[%clk 0:00:20]}  Rf6+ {[%clk 0:00:39]} 32. Ke2 {[%clk 0:00:19]}  b5 {[%clk 0:00:31]} 33. f3 {[%clk 0:00:17]}  Re6 {[%clk 0:00:20]} 34. b3 {[%clk 0:00:13]}  Rf8 {[%clk 0:00:15]} 35. Kd3 {[%clk 0:00:11]}  Nf5 {[%clk 0:00:15]} 36. e4 {[%clk 0:00:08]}  Nxg7 {[%clk 0:00:14]} 37. Rxg7 {[%clk 0:00:08]}  b4 {[%clk 0:00:12]} 38. axb4 {[%clk 0:00:05]}  axb4 {[%clk 0:00:13]} 39. exd5 {[%clk 0:00:05]}  Rg6 {[%clk 0:00:10]} 40. Rxg6 {[%clk 0:00:05]}  fxg6 {[%clk 0:00:11]} 41. Na2 {[%clk 0:00:05]}  Rxf3+ {[%clk 0:00:09]} 42. Ke4 {[%clk 0:00:04]}  Rxb3 {[%clk 0:00:09]} 43. dxc6 {[%clk 0:00:05]}  Kd6 {[%clk 0:00:09]} 44. d5 {[%clk 0:00:05]}  g5 {[%clk 0:00:08]} 45. Nc1 {[%clk 0:00:05]}  Rc3 {[%clk 0:00:08]} 46. Na2 {[%clk 0:00:06]}  Rc4+ {[%clk 0:00:07]} 47. Kd3 {[%clk 0:00:06]}  Kxd5 {[%clk 0:00:07]} 48. c7 {[%clk 0:00:06]}  Rxc7 {[%clk 0:00:07]} 49. Nxb4+ {[%clk 0:00:07]}  Ke5 {[%clk 0:00:07]} 50. Ke3 {[%clk 0:00:07]}  Rc3+ {[%clk 0:00:07]} 51. Kf2 {[%clk 0:00:07]}  Rb3 {[%clk 0:00:07]} 52. Nc2 {[%clk 0:00:00]}  Rb2 {[%clk 0:00:07]} 0-1


[Site "https://www.chess.com"]

[Event "Titled Tuesday Blitz November 07 Early 2023"]
[White "Kanyamarala, Trisha"]
[Black "Quirke, Jeffrey"]
[WhiteFideId "45004722"]
[BlackFideId "2013029"]
[WhiteElo "2479"]
[BlackElo "2234"]
[Result "1-0"]
[Round "2"]
[TimeControl "180+1"]
[Date "2023.11.07"]
[WhiteClock "0:02:01"]
[BlackClock "0:00:43"]
[Board "210"]

1. c4 {[%clk 0:02:50]}  Nf6 {[%clk 0:02:58]} 2. Nc3 {[%clk 0:02:47]}  g6 {[%clk 0:02:57]} 3. g3 {[%clk 0:02:47]}  Bg7 {[%clk 0:02:57]} 4. Bg2 {[%clk 0:02:48]}  O-O {[%clk 0:02:54]} 5. Nf3 {[%clk 0:02:48]}  d5 {[%clk 0:02:53]} 6. cxd5 {[%clk 0:02:44]}  Nxd5 {[%clk 0:02:53]} 7. d4 {[%clk 0:02:44]}  Nb6 {[%clk 0:02:47]} 8. O-O {[%clk 0:02:43]}  Nc6 {[%clk 0:02:47]} 9. d5 {[%clk 0:02:43]}  Na5 {[%clk 0:02:40]} 10. e4 {[%clk 0:02:37]}  c6 {[%clk 0:02:38]} 11. Qc2 {[%clk 0:02:17]}  cxd5 {[%clk 0:02:25]} 12. exd5 {[%clk 0:02:10]}  Nxd5 {[%clk 0:01:59]} 13. Rd1 {[%clk 0:02:08]}  Nb4 {[%clk 0:01:36]} 14. Qa4 {[%clk 0:02:02]}  Qb6 {[%clk 0:00:43]} 15. Be3 {[%clk 0:02:01]} 1-0


[Site "https://www.chess.com"]

[Event "Titled Tuesday Blitz November 07 Early 2023"]
[White "Kiseljova, Marya"]
[Black "Remolar Gallen, Jose"]
[WhiteFideId "4155009"]
[BlackFideId "2215187"]
[WhiteElo "2232"]
[BlackElo "2474"]
[Result "0-1"]
[Round "2"]
[TimeControl "180+1"]
[Date "2023.11.07"]
[WhiteClock "0:00:00"]
[BlackClock "0:00:10"]
[Board "212"]

1. d4 {[%clk 0:03:00]}  g6 {[%clk 0:02:56]} 2. e4 {[%clk 0:02:59]}  Bg7 {[%clk 0:02:56]} 3. Nf3 {[%clk 0:02:56]}  c6 {[%clk 0:02:54]} 4. Be2 {[%clk 0:02:55]}  d5 {[%clk 0:02:54]} 5. e5 {[%clk 0:02:54]}  f6 {[%clk 0:02:52]} 6. O-O {[%clk 0:02:53]}  Nh6 {[%clk 0:02:51]} 7. h3 {[%clk 0:02:44]}  O-O {[%clk 0:02:50]} 8. Re1 {[%clk 0:02:44]}  Nf7 {[%clk 0:02:50]} 9. exf6 {[%clk 0:02:43]}  exf6 {[%clk 0:02:50]} 10. Nbd2 {[%clk 0:02:41]}  Nd6 {[%clk 0:02:50]} 11. c3 {[%clk 0:02:40]}  Be6 {[%clk 0:02:47]} 12. b3 {[%clk 0:02:40]}  Re8 {[%clk 0:02:46]} 13. Ba3 {[%clk 0:02:37]}  a5 {[%clk 0:02:45]} 14. Nf1 {[%clk 0:02:37]}  a4 {[%clk 0:02:44]} 15. Qc2 {[%clk 0:02:26]}  Bf5 {[%clk 0:02:24]} 16. Bd3 {[%clk 0:02:26]}  Rxe1 {[%clk 0:02:22]} 17. Nxe1 {[%clk 0:02:17]}  axb3 {[%clk 0:02:20]} 18. axb3 {[%clk 0:02:15]}  Nd7 {[%clk 0:02:17]} 19. Bxf5 {[%clk 0:02:03]}  Nxf5 {[%clk 0:02:15]} 20. Qc1 {[%clk 0:01:58]}  Bh6 {[%clk 0:02:12]} 21. Qb1 {[%clk 0:01:50]}  Qe8 {[%clk 0:02:02]} 22. Nd3 {[%clk 0:01:22]}  Qe4 {[%clk 0:01:29]} 23. Bb2 {[%clk 0:00:57]}  Rxa1 {[%clk 0:01:23]} 24. Bxa1 {[%clk 0:00:58]}  c5 {[%clk 0:00:56]} 25. Qd1 {[%clk 0:00:42]}  c4 {[%clk 0:00:34]} 26. bxc4 {[%clk 0:00:41]}  dxc4 {[%clk 0:00:35]} 27. Nb4 {[%clk 0:00:35]}  Nb6 {[%clk 0:00:33]} 28. Bb2 {[%clk 0:00:33]}  Bf8 {[%clk 0:00:19]} 29. Nd2 {[%clk 0:00:31]}  Qe6 {[%clk 0:00:17]} 30. Nf3 {[%clk 0:00:30]}  Bxb4 {[%clk 0:00:16]} 31. cxb4 {[%clk 0:00:31]}  Nd5 {[%clk 0:00:17]} 32. Qc2 {[%clk 0:00:27]}  b5 {[%clk 0:00:17]} 33. Bc3 {[%clk 0:00:26]}  Nd6 {[%clk 0:00:16]} 34. Bd2 {[%clk 0:00:20]}  Qe4 {[%clk 0:00:16]} 35. Qa2 {[%clk 0:00:14]}  c3 {[%clk 0:00:12]} 36. Qa8+ {[%clk 0:00:10]}  Kg7 {[%clk 0:00:12]} 37. Qa7+ {[%clk 0:00:07]}  Nf7 {[%clk 0:00:12]} 38. Bc1 {[%clk 0:00:04]}  Nxb4 {[%clk 0:00:11]} 39. Qa3 {[%clk 0:00:00]}  Nd5 {[%clk 0:00:10]} 0-1


[Site "https://www.chess.com"]

[Event "Titled Tuesday Blitz November 07 Early 2023"]
[White "le-castor-faineant"]
[Black "Czerw, Dawid"]
[BlackFideId "1145746"]
[WhiteElo "2228"]
[BlackElo "2468"]
[Result "1-0"]
[Round "2"]
[TimeControl "180+1"]
[Date "2023.11.07"]
[WhiteClock "0:02:02"]
[BlackClock "0:01:33"]
[Board "214"]

1. e4 {[%clk 0:03:00]}  c5 {[%clk 0:03:00]} 2. Nf3 {[%clk 0:03:00]}  g6 {[%clk 0:03:01]} 3. d4 {[%clk 0:03:00]}  cxd4 {[%clk 0:03:02]} 4. Nxd4 {[%clk 0:03:00]}  Nc6 {[%clk 0:03:02]} 5. Nc3 {[%clk 0:02:57]}  Nf6 {[%clk 0:03:01]} 6. Be3 {[%clk 0:02:55]}  Bg7 {[%clk 0:03:00]} 7. Be2 {[%clk 0:02:54]}  O-O {[%clk 0:02:59]} 8. O-O {[%clk 0:02:54]}  d6 {[%clk 0:02:59]} 9. f3 {[%clk 0:02:52]}  Bd7 {[%clk 0:02:59]} 10. Nd5 {[%clk 0:02:49]}  Re8 {[%clk 0:02:55]} 11. c4 {[%clk 0:02:48]}  e6 {[%clk 0:02:45]} 12. Nxf6+ {[%clk 0:02:45]}  Qxf6 {[%clk 0:02:44]} 13. Nxc6 {[%clk 0:02:43]}  Bxc6 {[%clk 0:02:45]} 14. Rb1 {[%clk 0:02:36]}  d5 {[%clk 0:02:42]} 15. exd5 {[%clk 0:02:30]}  exd5 {[%clk 0:02:42]} 16. cxd5 {[%clk 0:02:22]}  Rxe3 {[%clk 0:02:29]} 17. dxc6 {[%clk 0:02:22]}  Qxc6 {[%clk 0:02:27]} 18. b3 {[%clk 0:02:21]}  Rae8 {[%clk 0:02:21]} 19. Bc4 {[%clk 0:02:17]}  b5 {[%clk 0:02:20]} 20. Bd5 {[%clk 0:02:16]}  Qc5 {[%clk 0:02:14]} 21. Kh1 {[%clk 0:02:14]}  Rd8 {[%clk 0:02:08]} 22. Bxf7+ {[%clk 0:02:13]}  Kxf7 {[%clk 0:02:00]} 23. Qxd8 {[%clk 0:02:14]}  Bc3 {[%clk 0:01:49]} 24. Rbd1 {[%clk 0:02:11]}  Kg7 {[%clk 0:01:38]} 25. Rd7+ {[%clk 0:02:06]}  Kh6 {[%clk 0:01:38]} 26. Qh4+ {[%clk 0:02:04]}  Qh5 {[%clk 0:01:38]} 27. Qf4+ {[%clk 0:02:03]}  Qg5 {[%clk 0:01:38]} 28. Rxh7+ {[%clk 0:02:02]}  Kxh7 {[%clk 0:01:33]} 29. Qxg5 {[%clk 0:02:02]} 1-0


[Site "https://www.chess.com"]

[Event "Titled Tuesday Blitz November 07 Early 2023"]
[White "Rodriguez Dominguez, Melissa"]
[Black "Boraso, Alessio"]
[WhiteFideId "3517560"]
[BlackFideId "848077"]
[WhiteElo "2219"]
[BlackElo "2466"]
[Result "1-0"]
[Round "2"]
[TimeControl "180+1"]
[Date "2023.11.07"]
[WhiteClock "0:00:06"]
[BlackClock "0:00:01"]
[Board "216"]

1. e4 {[%clk 0:02:44]}  d5 {[%clk 0:02:57]} 2. exd5 {[%clk 0:02:44]}  Nf6 {[%clk 0:02:57]} 3. Nf3 {[%clk 0:02:40]}  Bg4 {[%clk 0:02:56]} 4. d4 {[%clk 0:02:36]}  Nxd5 {[%clk 0:02:54]} 5. Be2 {[%clk 0:02:36]}  g6 {[%clk 0:02:53]} 6. O-O {[%clk 0:02:36]}  Bg7 {[%clk 0:02:54]} 7. h3 {[%clk 0:02:36]}  Bxf3 {[%clk 0:02:53]} 8. Bxf3 {[%clk 0:02:36]}  c6 {[%clk 0:02:53]} 9. c4 {[%clk 0:02:32]}  Nb6 {[%clk 0:02:51]} 10. c5 {[%clk 0:02:28]}  Nd5 {[%clk 0:02:49]} 11. Nc3 {[%clk 0:02:26]}  O-O {[%clk 0:02:45]} 12. Nxd5 {[%clk 0:02:23]}  cxd5 {[%clk 0:02:45]} 13. b4 {[%clk 0:02:22]}  Nc6 {[%clk 0:02:43]} 14. Be3 {[%clk 0:02:10]}  a6 {[%clk 0:02:24]} 15. Rb1 {[%clk 0:02:01]}  f5 {[%clk 0:02:09]} 16. g3 {[%clk 0:01:35]}  f4 {[%clk 0:01:49]} 17. gxf4 {[%clk 0:01:27]}  e6 {[%clk 0:01:49]} 18. a4 {[%clk 0:01:18]}  Qh4 {[%clk 0:01:39]} 19. Bg2 {[%clk 0:00:49]}  Bh6 {[%clk 0:01:33]} 20. b5 {[%clk 0:00:45]}  axb5 {[%clk 0:01:29]} 21. axb5 {[%clk 0:00:45]}  Na5 {[%clk 0:01:30]} 22. Qg4 {[%clk 0:00:37]}  Qxg4 {[%clk 0:01:24]} 23. hxg4 {[%clk 0:00:37]}  Bxf4 {[%clk 0:01:25]} 24. Ra1 {[%clk 0:00:25]}  Bxe3 {[%clk 0:01:13]} 25. fxe3 {[%clk 0:00:25]}  Nc4 {[%clk 0:01:13]} 26. Rxf8+ {[%clk 0:00:22]}  Rxf8 {[%clk 0:01:12]} 27. Ra7 {[%clk 0:00:22]}  Rf7 {[%clk 0:01:06]} 28. e4 {[%clk 0:00:20]}  Ne3 {[%clk 0:01:01]} 29. exd5 {[%clk 0:00:18]}  exd5 {[%clk 0:01:00]} 30. b6 {[%clk 0:00:13]}  Nc4 {[%clk 0:00:45]} 31. c6 {[%clk 0:00:12]}  Nxb6 {[%clk 0:00:45]} 32. cxb7 {[%clk 0:00:12]}  Rf8 {[%clk 0:00:38]} 33. Bxd5+ {[%clk 0:00:10]}  Nxd5 {[%clk 0:00:39]} 34. Ra8 {[%clk 0:00:10]}  Nf6 {[%clk 0:00:06]} 35. Rxf8+ {[%clk 0:00:09]}  Kxf8 {[%clk 0:00:07]} 36. b8=Q+ {[%clk 0:00:10]}  Kg7 {[%clk 0:00:08]} 37. Qc7+ {[%clk 0:00:09]}  Kh6 {[%clk 0:00:09]} 38. Qf4+ {[%clk 0:00:09]}  Kg7 {[%clk 0:00:09]} 39. Qe5 {[%clk 0:00:08]}  Kf7 {[%clk 0:00:05]} 40. g5 {[%clk 0:00:08]}  Ne8 {[%clk 0:00:03]} 41. d5 {[%clk 0:00:07]}  Ng7 {[%clk 0:00:02]} 42. Qf6+ {[%clk 0:00:07]}  Kg8 {[%clk 0:00:01]} 43. Qd8+ {[%clk 0:00:07]}  Kf7 {[%clk 0:00:02]} 44. d6 {[%clk 0:00:07]}  Ne6 {[%clk 0:00:01]} 45. Qe7+ {[%clk 0:00:06]} 1-0


[Site "https://www.chess.com"]

[Event "Titled Tuesday Blitz November 07 Early 2023"]
[White "jimmy-schlumpf"]
[Black "Manukyan, Sargis V."]
[BlackFideId "13303465"]
[WhiteElo "2212"]
[BlackElo "2462"]
[Result "1/2-1/2"]
[Round "2"]
[TimeControl "180+1"]
[Date "2023.11.07"]
[WhiteClock "0:01:21"]
[BlackClock "0:01:59"]
[Board "218"]

1. d4 {[%clk 0:03:00]}  Nf6 {[%clk 0:02:56]} 2. Nf3 {[%clk 0:03:00]}  c5 {[%clk 0:02:56]} 3. d5 {[%clk 0:02:59]}  e6 {[%clk 0:02:56]} 4. Nc3 {[%clk 0:02:59]}  exd5 {[%clk 0:02:57]} 5. Nxd5 {[%clk 0:02:59]}  Nxd5 {[%clk 0:02:56]} 6. Qxd5 {[%clk 0:02:58]}  d6 {[%clk 0:02:57]} 7. Ng5 {[%clk 0:02:56]}  Qf6 {[%clk 0:02:47]} 8. Nxh7 {[%clk 0:02:55]}  Rxh7 {[%clk 0:02:43]} 9. Qe4+ {[%clk 0:02:54]}  Be7 {[%clk 0:02:43]} 10. Qxh7 {[%clk 0:02:54]}  Nc6 {[%clk 0:02:43]} 11. c3 {[%clk 0:02:46]}  Bf5 {[%clk 0:02:43]} 12. Qh5 {[%clk 0:02:29]}  O-O-O {[%clk 0:02:42]} 13. h4 {[%clk 0:02:20]}  g6 {[%clk 0:02:41]} 14. Qh6 {[%clk 0:02:07]}  Qe6 {[%clk 0:02:26]} 15. Qe3 {[%clk 0:01:59]}  Qd7 {[%clk 0:02:21]} 16. Qg3 {[%clk 0:01:55]}  d5 {[%clk 0:02:20]} 17. Bg5 {[%clk 0:01:53]}  Bd6 {[%clk 0:02:19]} 18. Qf3 {[%clk 0:01:41]}  Be4 {[%clk 0:02:03]} 19. Qh3 {[%clk 0:01:40]}  Bf5 {[%clk 0:02:02]} 20. Qf3 {[%clk 0:01:21]}  Be4 {[%clk 0:02:00]} 21. Qh3 {[%clk 0:01:21]}  Bf5 {[%clk 0:01:59]} 22. Qf3 {[%clk 0:01:21]} 1/2-1/2


[Site "https://www.chess.com"]

[Event "Titled Tuesday Blitz November 07 Early 2023"]
[White "Savitha Shri B"]
[Black "Hartikainen, Jarmo"]
[WhiteFideId "35061887"]
[BlackFideId "503134"]
[WhiteElo "2461"]
[BlackElo "2192"]
[Result "1-0"]
[Round "2"]
[TimeControl "180+1"]
[Date "2023.11.07"]
[WhiteClock "0:00:38"]
[BlackClock "0:00:01"]
[Board "219"]

1. Nf3 {[%clk 0:03:00]}  Nf6 {[%clk 0:02:59]} 2. g3 {[%clk 0:03:00]}  g6 {[%clk 0:02:59]} 3. Bg2 {[%clk 0:03:01]}  Bg7 {[%clk 0:03:00]} 4. c4 {[%clk 0:03:02]}  c5 {[%clk 0:02:59]} 5. Nc3 {[%clk 0:03:02]}  Nc6 {[%clk 0:02:58]} 6. O-O {[%clk 0:03:02]}  O-O {[%clk 0:02:58]} 7. e4 {[%clk 0:03:03]}  e6 {[%clk 0:02:54]} 8. d4 {[%clk 0:03:02]}  cxd4 {[%clk 0:02:50]} 9. Nxd4 {[%clk 0:02:53]}  a6 {[%clk 0:02:45]} 10. Be3 {[%clk 0:02:46]}  Ne5 {[%clk 0:02:26]} 11. Qe2 {[%clk 0:02:38]}  Qc7 {[%clk 0:02:18]} 12. Bf4 {[%clk 0:02:31]}  Nh5 {[%clk 0:02:16]} 13. Bxe5 {[%clk 0:02:26]}  Bxe5 {[%clk 0:02:15]} 14. Rad1 {[%clk 0:02:26]}  d6 {[%clk 0:01:57]} 15. Kh1 {[%clk 0:02:12]}  Bd7 {[%clk 0:01:56]} 16. f4 {[%clk 0:02:11]}  Bg7 {[%clk 0:01:54]} 17. f5 {[%clk 0:02:08]}  exf5 {[%clk 0:01:12]} 18. Nd5 {[%clk 0:02:00]}  Qc5 {[%clk 0:01:12]} 19. Nb3 {[%clk 0:01:59]}  Qa7 {[%clk 0:00:59]} 20. exf5 {[%clk 0:01:56]}  Rae8 {[%clk 0:00:43]} 21. Qd2 {[%clk 0:01:22]}  Bxf5 {[%clk 0:00:38]} 22. Rxf5 {[%clk 0:01:21]}  gxf5 {[%clk 0:00:38]} 23. Qg5 {[%clk 0:01:12]}  Qf2 {[%clk 0:00:37]} 24. Ne7+ {[%clk 0:00:53]}  Kh8 {[%clk 0:00:36]} 25. Rf1 {[%clk 0:00:54]}  Qe2 {[%clk 0:00:31]} 26. Nxf5 {[%clk 0:00:53]}  Re5 {[%clk 0:00:26]} 27. Nbd4 {[%clk 0:00:51]}  f6 {[%clk 0:00:21]} 28. Qh4 {[%clk 0:00:43]}  Re4 {[%clk 0:00:11]} 29. Nxe2 {[%clk 0:00:40]}  Rxh4 {[%clk 0:00:09]} 30. Nxh4 {[%clk 0:00:41]}  f5 {[%clk 0:00:09]} 31. Nxf5 {[%clk 0:00:41]}  Be5 {[%clk 0:00:08]} 32. g4 {[%clk 0:00:39]}  Nf6 {[%clk 0:00:09]} 33. h3 {[%clk 0:00:40]}  Nd7 {[%clk 0:00:08]} 34. Nf4 {[%clk 0:00:39]}  Nc5 {[%clk 0:00:07]} 35. Nd5 {[%clk 0:00:38]}  Nd3 {[%clk 0:00:06]} 36. b3 {[%clk 0:00:38]}  Nf4 {[%clk 0:00:01]} 37. Nxf4 {[%clk 0:00:38]} 1-0


[Site "https://www.chess.com"]

[Event "Titled Tuesday Blitz November 07 Early 2023"]
[White "ploxoi"]
[Black "Smirnov, Timofey"]
[BlackFideId "24176427"]
[WhiteElo "2453"]
[BlackElo "2181"]
[Result "1-0"]
[Round "2"]
[TimeControl "180+1"]
[Date "2023.11.07"]
[WhiteClock "0:01:08"]
[BlackClock "0:00:00"]
[Board "223"]

1. d4 {[%clk 0:03:00]}  d5 {[%clk 0:02:57]} 2. c4 {[%clk 0:03:01]}  c6 {[%clk 0:02:57]} 3. Nf3 {[%clk 0:03:00]}  Nf6 {[%clk 0:02:56]} 4. e3 {[%clk 0:03:01]}  Bf5 {[%clk 0:02:54]} 5. Nc3 {[%clk 0:03:00]}  e6 {[%clk 0:02:54]} 6. Nh4 {[%clk 0:03:01]}  Bg6 {[%clk 0:02:53]} 7. Be2 {[%clk 0:03:00]}  Bd6 {[%clk 0:02:45]} 8. g3 {[%clk 0:03:00]}  O-O {[%clk 0:02:38]} 9. Nxg6 {[%clk 0:03:00]}  hxg6 {[%clk 0:02:37]} 10. O-O {[%clk 0:03:00]}  Nbd7 {[%clk 0:02:34]} 11. b3 {[%clk 0:02:59]}  a5 {[%clk 0:02:33]} 12. Bb2 {[%clk 0:02:59]}  Re8 {[%clk 0:02:09]} 13. Bf3 {[%clk 0:02:47]}  Rc8 {[%clk 0:02:02]} 14. Rc1 {[%clk 0:02:45]}  dxc4 {[%clk 0:01:47]} 15. bxc4 {[%clk 0:02:44]}  Qe7 {[%clk 0:01:27]} 16. Ne4 {[%clk 0:02:27]}  Nxe4 {[%clk 0:01:25]} 17. Bxe4 {[%clk 0:02:28]}  Ba3 {[%clk 0:01:25]} 18. Qb3 {[%clk 0:02:26]}  Bxb2 {[%clk 0:01:19]} 19. Qxb2 {[%clk 0:02:27]}  Nf6 {[%clk 0:01:18]} 20. Bg2 {[%clk 0:02:21]}  Qb4 {[%clk 0:00:57]} 21. Rc2 {[%clk 0:02:11]}  Ra8 {[%clk 0:00:54]} 22. Rb1 {[%clk 0:02:10]}  Qxb2 {[%clk 0:00:49]} 23. Rcxb2 {[%clk 0:02:09]}  Reb8 {[%clk 0:00:50]} 24. Rxb7 {[%clk 0:02:09]}  Rxb7 {[%clk 0:00:50]} 25. Rxb7 {[%clk 0:02:10]}  a4 {[%clk 0:00:38]} 26. Bxc6 {[%clk 0:02:08]}  Rc8 {[%clk 0:00:36]} 27. Bb5 {[%clk 0:02:05]}  a3 {[%clk 0:00:35]} 28. Ra7 {[%clk 0:02:05]}  Ne4 {[%clk 0:00:34]} 29. Rxa3 {[%clk 0:02:04]}  Nd2 {[%clk 0:00:32]} 30. Rc3 {[%clk 0:01:55]}  Nb1 {[%clk 0:00:26]} 31. Rc1 {[%clk 0:01:52]}  Na3 {[%clk 0:00:26]} 32. Ba4 {[%clk 0:01:41]}  Ra8 {[%clk 0:00:26]} 33. Bb3 {[%clk 0:01:40]}  Rc8 {[%clk 0:00:21]} 34. Kf1 {[%clk 0:01:39]}  Nb5 {[%clk 0:00:19]} 35. Ke2 {[%clk 0:01:37]}  Nd6 {[%clk 0:00:19]} 36. f3 {[%clk 0:01:34]}  Nf5 {[%clk 0:00:18]} 37. Kd2 {[%clk 0:01:34]}  Ne7 {[%clk 0:00:18]} 38. e4 {[%clk 0:01:30]}  Kf8 {[%clk 0:00:17]} 39. d5 {[%clk 0:01:30]}  exd5 {[%clk 0:00:17]} 40. cxd5 {[%clk 0:01:31]}  Rd8 {[%clk 0:00:14]} 41. Ke3 {[%clk 0:01:27]}  g5 {[%clk 0:00:13]} 42. Kd4 {[%clk 0:01:27]}  f6 {[%clk 0:00:13]} 43. Rc7 {[%clk 0:01:22]}  Ng6 {[%clk 0:00:11]} 44. Ba4 {[%clk 0:01:17]}  Ne5 {[%clk 0:00:10]} 45. f4 {[%clk 0:01:16]}  Nf3+ {[%clk 0:00:09]} 46. Ke3 {[%clk 0:01:16]}  Nxh2 {[%clk 0:00:09]} 47. fxg5 {[%clk 0:01:16]}  Ng4+ {[%clk 0:00:09]} 48. Kd4 {[%clk 0:01:16]}  Ne5 {[%clk 0:00:05]} 49. gxf6 {[%clk 0:01:15]}  gxf6 {[%clk 0:00:06]} 50. Rh7 {[%clk 0:01:13]}  Kg8 {[%clk 0:00:04]} 51. Re7 {[%clk 0:01:09]}  Nc6+ {[%clk 0:00:00]} 52. Bxc6 {[%clk 0:01:08]} 1-0


[Site "https://www.chess.com"]